bitfinex-derivatives/quotes_SOLF0:USTF0_20250228
["timestamp","ask_amount","ask_price","bid_price","bid_amount"]
[1740753103929,23.74778959,143.95,143.91,3.52797837]
[1740753104126,174.15165598,143.96,143.91,3.52797837]
[1740753104330,137.38175598,143.96,143.91,3.52797837]
[1740753104621,21.09888659,143.99,143.91,4.91773585]
[1740753104822,0.05062701,143.95,143.91,1.38975748]
[1740753105122,21.09888659,143.99,143.94,0.04667956]
[1740753105320,21.09888659,143.99,143.95,22.66]
[1740753105522,118.26765598,144.0,143.96,9.7001379]
[1740753105720,85.22195598,144.0,143.99,6.9489]
[1740753105924,7.42615598,144.0,143.99,6.9489]
[1740753106118,263.96974899,144.01,143.99,10.4289]
[1740753106321,212.60312283,144.01,144.0,16.6485379]
[1740753106522,202.16222283,144.01,144.0,3.48]
[1740753106718,202.16222283,144.01,144.0,13.1801379]
[1740753106919,202.16222283,144.01,144.0,3.48]
[1740753107232,202.16222283,144.01,144.0,15.06494075]
[1740753107422,0.05271786,144.01,144.0,5.36480285]
[1740753108926,0.05271786,144.01,143.99,424.42958565]
[1740753110021,0.05271786,144.01,144.0,424.42958565]
[1740753110632,0.05271786,144.01,144.0,429.84455774]
[1740753110633,7.00061786,144.01,144.0,429.84455774]
[1740753110926,0.05271786,144.01,144.0,429.84455774]
[1740753111529,0.05271786,144.01,144.0,433.32455774]
[1740753111723,1.20035159,144.11,144.0,439.54469564]
[1740753111929,34.73,144.09,144.0,429.84455774]
[1740753112223,13.8842,144.09,144.0,429.84455774]
[1740753112425,6.94,144.09,144.0,429.84455774]
[1740753112629,6.94,144.09,144.07,103.87808131]
[1740753112830,32.96020061,144.08,144.07,68.77818131]
[1740753113132,33.01330839,144.09,144.07,68.77818131]
[1740753113333,6.9446,144.08,144.07,45.99578131]
[1740753113528,32.96020061,144.08,144.06,1.531e-05]
[1740753113730,21.46379468,144.07,144.05,38.48635082]
[1740753114028,244.5,144.06,144.03,216.41266939]
[1740753114229,244.5,144.06,144.03,112.53723894]
[1740753114427,6.946,144.05,144.04,8.68257022]
[1740753114828,3.48,144.05,144.03,26.09481244]
[1740753115028,6.9465,144.04,144.03,26.09481244]
[1740753115225,235.99761147,144.06,144.02,4.09237425]
[1740753115429,235.99761147,144.06,144.0,203.2479706]
[1740753115631,270.62921147,144.06,143.82,3.3884]
[1740753115824,267.14921147,144.06,143.76,23.86607022]
[1740753116130,55.4126,144.05,143.75,6.806]
[1740753116332,0.04390214,143.92,143.9,8.38e-05]
[1740753116527,6.9533,143.9,143.85,4.09237425]
[1740753116733,22.06,143.91,143.86,4.09237425]
[1740753116931,222.32,143.96,143.76,5.4336476]
[1740753117233,222.32,143.96,143.86,4.09237425]
[1740753117427,222.32,143.96,143.85,4.09237425]
[1740753117633,0.04804333,143.92,143.9,0.05343412]
[1740753117833,6.9548,143.87,143.84,4.09237425]
[1740753118026,222.32,143.96,143.84,4.09237425]
[1740753118225,3.5784,144.04,143.9,4.09237425]
[1740753118430,22.02,144.03,143.8,22.02]
[1740753118631,22.02,144.03,143.92,4.09237425]
[1740753119033,6.9499,143.97,143.96,0.05171472]
[1740753119232,0.05185212,143.99,143.96,0.05171472]
[1740753120131,6.9499,143.97,143.96,0.05171472]
[1740753120326,0.05185212,143.99,143.82,5.4336476]
[1740753120531,22.0,144.02,143.82,12.16257022]
[1740753120735,22.0,144.02,143.81,0.25186]
[1740753120935,22.0,144.02,143.85,4.09237425]
[1740753121331,254.57509946,143.97,143.85,4.09237425]
[1740753121532,0.0447279,143.95,143.92,0.05015742]
[1740753121735,22.0247279,143.95,143.92,0.05015742]
[1740753121936,21.98,143.95,143.81,0.25186]
[1740753122130,114.79833328,143.91,143.87,4.09237425]
[1740753122337,114.79833328,143.91,143.9,4.09237425]
[1740753122537,114.79833328,143.91,143.89,4.09237425]
[1740753122739,114.79833328,143.91,143.9,4.09237425]
[1740753122930,114.79833328,143.91,143.87,0.05070506]
[1740753123131,114.79833328,143.91,143.87,4.14307931]
[1740753123337,114.79833328,143.91,143.9,4.09237425]
[1740753123533,114.79833328,143.91,143.87,12.21327528]
[1740753123733,121.75153328,143.91,143.87,0.05070506]
[1740753123943,9.56003972,143.9,143.89,4.09237425]
[1740753124239,16.51333972,143.9,143.89,4.09237425]
[1740753124442,9.56003972,143.9,143.89,4.09237425]
[1740753124630,21.03992981,143.92,143.89,4.09237425]
[1740753124837,114.79833328,143.95,143.91,4.09237425]
[1740753125041,114.79833328,143.95,143.94,4.09237425]
[1740753125238,114.79833328,143.95,143.92,4.09237425]
[1740753125436,114.79833328,143.95,143.9,4.09237425]
[1740753125631,114.79833328,143.95,143.77,244.38]
[1740753125632,114.79833328,143.95,143.94,4.09237425]
[1740753125830,222.46,144.07,143.87,17.1781755]
[1740753126035,0.0488002,143.94,143.91,0.04891619]
[1740753126232,3.6551,144.06,143.87,239.6381755]
[1740753126432,0.05328249,143.94,143.87,239.6381755]
[1740753126639,266.57646457,143.95,143.91,0.04465077]
[1740753126836,129.50296457,143.95,143.91,0.04465077]
[1740753127038,68.48936457,143.95,143.87,239.6381755]
[1740753127240,47.71856457,143.95,143.87,220.03579704]
[1740753127640,619.98847014,143.97,143.87,221.42594091]
[1740753127941,619.98847014,143.97,143.9,0.04698385]
[1740753127942,0.04791344,143.92,143.9,0.04698385]
[1740753128151,1.344e-05,143.92,143.9,0.04698385]
[1740753128349,619.98847014,143.97,143.9,0.04698385]
[1740753128854,34.74,143.94,143.9,0.04698385]
[1740753129155,34.74,143.92,143.9,0.04698385]
[1740753129554,65.98,143.92,143.79,244.48]
[1740753129754,34.74,143.91,143.79,244.48]
[1740753129960,22.04,144.04,143.81,1.64258387]
[1740753130148,3.6036,144.03,143.82,1.39062717]
[1740753130355,3.6036,144.03,143.89,6.9535]
[1740753130555,3.6036,144.03,143.89,22.06]
[1740753131057,0.04834944,143.94,143.92,0.05322166]
[1740753131252,6.8681,144.07,143.92,0.05322166]
[1740753131460,3.4509,144.07,143.93,1.38956437]
[1740753131848,3.5014,144.1,143.93,1.38956437]
[1740753132051,3.4509,144.22,143.93,438.38956437]
[1740753132349,34.74,144.16,143.93,1.38956437]
[1740753132550,0.04538308,144.09,144.06,0.050826]
[1740753132753,0.04538308,144.09,144.07,22.1]
[1740753132950,3.6739,144.24,144.07,22.1]
[1740753133146,6.9371,144.24,144.08,1.38811771]
[1740753133347,76.30627325,144.27,144.08,1.38811771]
[1740753133752,76.30627325,144.27,144.22,6.9374]
[1740753133954,76.30627325,144.27,144.23,22.26]
[1740753134153,76.30627325,144.33,144.23,22.26]
[1740753134349,3.34e-05,144.26,144.23,25.77232981]
[1740753134660,76.30627325,144.33,144.23,22.26]
[1740753134956,48.71037325,144.33,144.23,22.26]
[1740753135260,43.16990987,144.36,144.35,6.9316]
[1740753135451,43.16990987,144.36,144.35,251.6516]
[1740753135657,43.16990987,144.36,144.35,248.18]
[1740753135865,43.16990987,144.36,144.27,22.44996579]
[1740753136159,43.16990987,144.36,144.27,22.4]
[1740753136458,64.21975633,144.35,144.3,0.04829954]
[1740753136654,0.04889071,144.33,144.3,0.04829954]
[1740753136852,6.933,144.32,144.31,3.30576301]
[1740753137056,0.04889071,144.33,144.3,0.04829954]
[1740753137759,0.04889071,144.33,144.31,5.47099894]
[1740753137954,0.04889071,144.33,144.31,59.08517949]
[1740753138151,64.21975633,144.32,144.31,59.08517949]
[1740753138355,0.04889071,144.33,144.31,59.08517949]
[1740753138663,0.04889071,144.33,144.32,5.47099894]
[1740753138863,0.04889071,144.33,144.32,160.53799925]
[1740753139064,31.24,144.37,144.32,160.53799925]
[1740753139359,64.21975633,144.36,144.32,155.06700031]
[1740753139558,222.02,144.65,144.32,177.54700031]
[1740753139753,64.21975633,144.46,144.32,177.54700031]
[1740753139954,64.21975633,144.41,144.33,6.9325]
[1740753140158,64.21975633,144.43,144.32,112.00575145]
[1740753140359,0.04470284,144.38,144.36,0.04440469]
[1740753140555,2.84e-06,144.38,144.37,6.9306]
[1740753140857,3.4999,144.49,144.33,35.2724207]
[1740753141059,64.21975633,144.44,144.33,35.2724207]
[1740753141360,26.083,144.5,144.37,15.64294338]
[1740753141560,6.9301,144.38,144.37,15.64294338]
[1740753141763,22.56,144.43,144.42,8.853e-05]
[1740753142156,26.02,144.43,144.42,60.17033932]
[1740753142358,22.56,144.43,144.39,149.8775874]
[1740753142564,6.9229,144.54,144.39,149.8775874]
[1740753142865,221.88,144.6,144.39,149.8775874]
[1740753142866,22.52,144.6,144.39,172.3975874]
[1740753143063,6.9235,144.52,144.4,8.58524863]
[1740753143364,0.05263592,144.51,144.48,0.04399098]
[1740753143658,221.88,144.5,144.48,9.098e-05]
[1740753143864,221.88,144.5,144.4,8.58524863]
[1740753144265,6.9287,144.41,144.4,2.94414863]
[1740753144560,22.48,144.42,144.41,94.69982678]
[1740753144775,22.48,144.42,144.33,209.34362359]
[1740753145069,25.94,144.42,144.4,4.853e-05]
[1740753145365,22.48,144.42,144.33,209.34362359]
[1740753145761,6.9291,144.41,144.33,209.34362359]
[1740753145962,22.48,144.42,144.33,209.34362359]
[1740753146261,22.48,144.42,144.25,3.6875]
[1740753146262,22.48,144.42,144.38,25.08616684]
[1740753146468,0.04523491,144.39,144.38,25.08616684]
[1740753146970,221.88,144.5,144.38,28.54616684]
[1740753147260,221.88,144.5,144.38,25.08616684]
[1740753148361,0.05144896,144.45,144.43,0.04669007]
[1740753148763,22.46,144.52,144.43,0.04669007]
[1740753149166,0.04668517,144.45,144.36,3.4031]
[1740753149361,22.38,144.54,144.36,3.4031]
[1740753149558,22.38,144.63,144.46,0.04516869]
[1740753149763,22.38,144.64,144.46,0.04516869]
[1740753149963,22.38,144.64,144.46,3.6317]
[1740753150266,13.8174,144.83,144.47,221.78]
[1740753150468,6.9152,144.7,144.48,3.21197459]
[1740753150665,221.78,144.79,144.54,0.04815145]
[1740753150868,6.9125,144.75,144.55,22.58]
[1740753151067,221.78,144.79,144.56,6.91737459]
[1740753151267,221.78,144.79,144.57,221.68]
[1740753151467,221.78,144.79,144.58,3.21197459]
[1740753151669,22.58,144.81,144.63,6.9181]
[1740753151870,22.58,144.81,144.59,3.744]
[1740753152069,6.9158,144.68,144.67,0.05180504]
[1740753152267,22.56,144.7,144.59,3.744]
[1740753152665,22.52,144.75,144.59,3.744]
[1740753152870,221.68,144.81,144.59,3.744]
[1740753153166,221.68,144.81,144.6,221.68]
[1740753153573,0.05282182,144.72,144.69,0.046947]
[1740753154065,22.56,144.82,144.62,22.52]
[1740753154262,0.04663351,144.72,144.69,0.04717365]
[1740753154467,22.54,144.85,144.69,0.04717365]
[1740753154668,22.54,144.85,144.62,22.52]
[1740753154867,221.54,144.89,144.62,22.52]
[1740753155173,22.56,144.94,144.63,3.17720234]
[1740753155363,22.56,144.94,144.63,440.17720234]
[1740753155567,22.56,144.94,144.79,6.9104]
[1740753155768,22.56,144.94,144.78,22.52]
[1740753155967,221.54,144.97,144.79,10.5924]
[1740753156373,221.54,144.97,144.85,0.05204223]
[1740753156762,221.54,144.97,144.79,10.5924]
[1740753156968,0.58803674,145.05,144.79,10.5924]
[1740753156969,221.36,145.05,144.79,10.5924]
[1740753157174,22.44,145.04,144.9,0.05263599]
[1740753157371,24.5473,145.04,144.9,0.05263599]
[1740753157573,24.5473,145.04,144.79,10.5924]
[1740753157971,22.44,145.04,144.96,0.04889003]
[1740753158170,22.44,145.04,144.79,10.5924]
[1740753158675,22.44,145.04,144.79,6.9772]
[1740753158871,36.2375,145.04,144.71,7.236]
[1740753159375,6.9106,144.79,144.71,7.236]
[1740753159565,22.42,144.85,144.71,7.236]
[1740753160077,0.05249244,144.79,144.77,0.04796894]
[1740753160470,22.42,144.85,144.77,0.04796894]
[1740753160676,0.04630811,144.79,144.77,0.04796894]
[1740753160878,6.911,144.78,144.77,0.04796894]
[1740753161273,6.914,144.72,144.63,6.9181]
[1740753161481,22.38,144.78,144.61,22.38]
[1740753161674,243.64,144.78,144.56,33.0266]
[1740753161882,243.64,144.78,144.56,10.6466]
[1740753162078,243.64,144.78,144.56,7.2711]
[1740753162573,0.04701398,144.68,144.5,3.3755]
[1740753162774,243.6,144.67,144.5,3.3755]
[1740753162980,243.6,144.67,144.45,6.8211]
[1740753163181,264.41,144.67,144.37,3.6678]
[1740753163475,264.44,144.67,144.37,3.6678]
[1740753163780,0.04488018,144.53,144.51,7.932e-05]
[1740753163981,29.3034,144.52,144.51,7.932e-05]
[1740753164279,22.38,144.52,144.37,3.6678]
[1740753164579,22.38,144.58,144.37,3.6678]
[1740753164977,22.36,144.63,144.37,3.6678]
[1740753165284,22.36,144.63,144.46,0.04414778]
[1740753165480,22.36,144.63,144.47,22.34]
[1740753165679,22.36,144.63,144.48,3.3948]
[1740753165877,22.36,144.63,144.38,3.5239]
[1740753166283,64.01,144.63,144.36,3.4396]
[1740753166476,0.05043378,144.52,144.36,3.4396]
[1740753166682,243.66,144.51,144.21,221.34]
[1740753166876,243.66,144.51,144.05,1957.38]
[1740753166877,41.65,144.49,144.22,6.9791]
[1740753167072,41.65,144.49,144.17,7.59644395]
[1740753167279,41.65,144.47,144.17,7.59644395]
[1740753167780,41.65,144.45,144.17,7.59644395]
[1740753167981,0.04460223,144.33,144.31,1.49e-06]
[1740753168181,243.64,144.32,144.1,9.27442656]
[1740753168384,2.108,144.31,144.1,9.27442656]
[1740753169080,2.108,144.31,144.1,3.5239]
[1740753169284,0.04561122,144.22,144.19,0.04842043]
[1740753169596,243.64,144.32,144.1,4.91182505]
[1740753169783,6.9305,144.38,144.2,6.9386]
[1740753169980,22.22,144.37,144.19,0.04442472]
[1740753170176,22.22,144.37,144.18,3.5904]
[1740753170888,6.9328,144.33,144.18,3.5904]
[1740753171089,0.04585697,144.29,144.26,0.0449256]
[1740753171289,243.72,144.28,144.12,5.78366476]
[1740753171487,2.1246,144.27,144.12,5.78366476]
[1740753171993,22.16,144.33,144.12,5.78366476]
[1740753172185,22.16,144.33,144.13,3.5741]
[1740753172379,22.16,144.33,144.13,6.81634443]
[1740753172681,0.04742062,144.24,144.21,0.04543796]
[1740753172989,6.9346,144.29,144.13,3.5741]
[1740753173190,22.16,144.33,144.12,15.07030607]
[1740753173488,0.05025724,144.24,144.21,0.05066425]
[1740753173688,0.05025724,144.24,144.12,15.07030607]
[1740753173988,22.16,144.33,144.12,5.78366476]
[1740753174585,22.16,144.33,144.11,1.38782874]
[1740753174981,0.04516437,144.23,144.21,0.0531733]
[1740753175187,243.9,144.22,144.07,3.25574158]
[1740753176090,22.08,144.3,144.06,3.25574158]
[1740753176292,0.04551521,144.16,144.13,0.04741323]
[1740753176691,22.12,144.23,144.07,3.26873305]
[1740753176890,0.05083579,144.16,144.13,0.04723317]
[1740753177191,22.12,144.23,144.07,3.26873305]
[1740753177392,0.04505519,144.16,144.13,0.04434851]
[1740753177792,22.12,144.23,144.13,0.04434851]
[1740753178194,22.12,144.23,144.09,3.27023609]
[1740753178392,22.12,144.23,144.1,6.9436]
[1740753178595,22.12,144.23,144.09,3.26826712]
[1740753178985,0.0463372,144.17,144.15,0.05216299]
[1740753179495,0.0528596,144.17,144.15,0.05216299]
[1740753180987,2.0743,144.3,144.15,25.57216299]
[1740753181192,221.92,144.39,144.16,3.25681153]
[1740753181387,24.1506,144.38,144.17,3.4104]
[1740753181594,6.9324,144.34,144.17,3.4104]
[1740753181795,24.1506,144.38,144.17,3.4104]
[1740753182196,0.04676527,144.29,144.26,0.04888664]
[1740753182397,0.63212937,144.44,144.22,22.06]
[1740753182598,22.06,144.44,144.23,6.96782124]
[1740753182794,2.0706,144.53,144.23,10.44932124]
[1740753183202,22.06,144.52,144.24,3.23892124]
[1740753183498,22.06,144.52,144.25,5.85566497]
[1740753183692,0.04365975,144.39,144.37,0.04610935]
[1740753183894,5.975e-05,144.39,144.37,0.04610935]
[1740753184202,22.1,144.57,144.37,25.56]
[1740753184399,22.1,144.57,144.38,8.28353847]
[1740753184602,2.0668,144.61,144.39,221.82]
[1740753184798,2.0668,144.61,144.4,3.22770506]
[1740753185098,2.0668,144.61,144.39,1.38513747]
[1740753185293,0.04499977,144.52,144.49,6.803e-05]
[1740753185498,243.92,144.51,144.38,26.83242654]
[1740753185701,2.0668,144.5,144.38,26.83242654]
[1740753186395,6.9265,144.46,144.31,10.6041]
[1740753186598,2.0668,144.5,144.31,3.6706]
[1740753186799,0.05156702,144.45,144.43,0.05178398]
[1740753186995,22.1,144.44,144.28,15.11105818]
[1740753187191,22.12,144.43,144.28,15.11105818]
[1740753187501,22.12,144.43,144.28,13.09815818]
[1740753187701,67.23,144.43,144.22,5.78366476]
[1740753187896,1.38484974,144.42,144.22,5.78366476]
[1740753188106,6.936,144.26,144.22,5.78366476]
[1740753188305,22.12,144.25,144.22,5.78366476]
[1740753188599,22.12,144.25,144.23,0.05320408]
[1740753188801,221.8,144.3,144.12,17.43752337]
[1740753188997,41.65,144.03,143.8,49.80426269]
[1740753189297,41.65,143.88,143.58,27.3498595]
[1740753189501,41.65,143.86,143.44,3.6634]
[1740753189698,41.65,143.84,143.56,34.65]
[1740753189996,20.81,143.8,143.51,309.1976759]
[1740753190202,6.9669,143.62,143.59,173.35]
[1740753190401,0.04782306,143.71,143.6,173.35]
[1740753190594,222.08,143.75,143.64,0.04638351]
[1740753190896,222.08,143.75,143.51,260.61760638]
[1740753191102,0.04424447,143.67,143.51,249.92990638]
[1740753191292,1.39217597,143.66,143.51,249.92990638]
[1740753191493,222.08,143.65,143.51,423.24260638]
[1740753191693,222.08,143.65,143.51,249.92990638]
[1740753192204,20.89121847,143.59,143.3,229.2987]
[1740753192397,0.05121847,143.59,143.42,173.3127]
[1740753192596,6.9744,143.47,143.42,173.3127]
[1740753192803,222.08,143.55,143.42,173.3127]
[1740753193101,222.08,143.55,143.46,34.65]
[1740753193294,19.71241796,143.58,143.47,173.3127]
[1740753193499,1.39304868,143.57,143.3,230.69437341]
[1740753193697,0.05160716,143.54,143.51,7.99e-06]
[1740753194102,16.01932348,143.56,143.3,230.69437341]
[1740753194300,1.39304868,143.57,143.41,207.9627]
[1740753194301,6.16127826,143.53,143.41,207.9627]
[1740753194600,6.16127826,143.53,143.45,173.3127]
[1740753194801,6.16127826,143.53,143.47,207.9627]
[1740753195103,0.04931563,143.5,143.49,34.65]
[1740753195304,6.16127826,143.53,143.48,0.04458256]
[1740753195603,222.42,143.52,143.3,8.61437341]
[1740753195798,484.40458542,143.57,143.45,3.2303]
[1740753196000,484.40458542,143.57,143.3,57.19444293]
[1740753196196,484.40458542,143.57,143.45,37.8803]
[1740753196402,484.40458542,143.57,143.43,37.8803]
[1740753196599,484.40458542,143.57,143.47,34.65]
[1740753196898,0.05060142,143.51,143.47,3.2303]
[1740753197104,0.05060142,143.51,143.35,222.66]
[1740753197300,0.05060142,143.51,143.48,0.04569458]
[1740753197500,484.40458542,143.57,143.48,0.04569458]
[1740753197706,0.05324977,143.51,143.3,8.61437341]
[1740753198006,6.9727,143.5,143.42,37.8803]
[1740753198202,9.03035967,143.5,143.42,37.8803]
[1740753198401,9.03035967,143.5,143.3,7.2187]
[1740753198703,9.03035967,143.5,143.42,34.65]
[1740753198903,9.03035967,143.5,143.3,7.2187]
[1740753198904,9.03035967,143.5,143.41,34.65]
[1740753199106,219.49483845,143.57,143.39,0.05051765]
[1740753199306,0.05256719,143.47,143.42,37.8803]
[1740753199511,0.05256719,143.47,143.43,37.8803]
[1740753199808,219.49483845,143.57,143.44,3.2303]
[1740753200004,0.04499706,143.46,143.43,0.05313839]
[1740753200201,222.82,143.53,143.3,7.2187]
[1740753200404,0.0472405,143.46,143.43,0.05255591]
[1740753200603,0.0472405,143.46,143.3,57.19444293]
[1740753200604,0.0472405,143.46,143.4,3.2303]
[1740753200803,222.82,143.53,143.3,8.61437341]
[1740753201008,0.05364977,143.44,143.43,0.04711321]
[1740753201299,222.82,143.53,143.3,57.19444293]
[1740753201501,0.05073959,143.45,143.42,0.04480131]
[1740753201907,218.10178977,143.57,143.3,7.2187]
[1740753202106,0.04404188,143.45,143.42,0.04758227]
[1740753202307,0.04404188,143.45,143.3,7.2187]
[1740753202504,1.39314572,143.56,143.3,7.2187]
[1740753202909,1.39314572,143.56,143.3,55.79876952]
[1740753203106,1.39314572,143.56,143.34,6.98]
[1740753203307,1.39314572,143.56,143.3,7.2187]
[1740753203508,0.04918955,143.46,143.44,0.04750577]
[1740753203911,1.39314572,143.56,143.31,3.6457]
[1740753204211,0.04625848,143.46,143.44,0.04861372]
[1740753204613,1.39314572,143.56,143.44,48.53381104]
[1740753204814,1.39314572,143.56,143.38,222.96]
[1740753205607,1.39314572,143.56,143.38,271.49381104]
[1740753205807,1.39314572,143.56,143.46,0.04807142]
[1740753206013,1.39314572,143.56,143.38,222.96]
[1740753206210,1.39314572,143.56,143.38,271.49381104]
[1740753206706,1.39314572,143.56,143.45,6.975]
[1740753206913,1.39314572,143.56,143.4,223.02]
[1740753207107,0.04940899,143.52,143.49,0.05275413]
[1740753208213,1.39314572,143.56,143.49,0.05275413]
[1740753208414,8.14781009,143.83,143.5,223.04]
[1740753208606,8.14781009,143.83,143.51,7.3286]
[1740753209206,41.65,143.95,143.66,0.05158022]
[1740753209511,41.65,143.95,143.69,6.9633]
[1740753209711,41.65,143.95,143.63,223.04]
[1740753209909,41.65,143.95,143.52,48.53381104]
[1740753210213,41.65,143.93,143.53,223.04]
[1740753210605,0.04915815,143.74,143.72,0.04782272]
[1740753211008,223.04,143.84,143.53,223.04]
[1740753211207,0.04411617,143.74,143.72,0.04980611]
[1740753211410,223.04,143.84,143.53,271.57381104]
[1740753211714,0.04652719,143.74,143.72,0.05256608]
[1740753211918,223.04,143.84,143.53,223.04]
[1740753212113,0.04733333,143.74,143.72,0.04619699]
[1740753212307,223.04,143.84,143.53,223.04]
[1740753212613,0.04439316,143.74,143.72,0.05101423]
[1740753212817,223.04,143.84,143.53,223.04]
[1740753213008,0.0470469,143.74,143.72,0.05260694]
[1740753213314,223.04,143.84,143.53,223.04]
[1740753213514,0.04408909,143.74,143.72,0.04884074]
[1740753213714,223.04,143.84,143.63,222.96]
[1740753214015,223.04,143.84,143.72,0.04786652]
[1740753214213,0.04780914,143.75,143.72,0.04786652]
[1740753214513,223.04,143.84,143.72,0.04492325]
[1740753214813,0.04506849,143.75,143.36,222.9]
[1740753215018,41.65,143.73,143.48,1.39392249]
[1740753215212,222.9,143.74,143.48,1.39392249]
[1740753215718,15.79061848,143.73,143.48,1.39392249]
[1740753215919,0.0520076,143.62,143.6,0.05251864]
[1740753216309,15.79061848,143.73,143.48,1.39392249]
[1740753216514,222.9,143.81,143.6,0.04787429]
[1740753216714,222.9,143.81,143.61,1.39266067]
[1740753217114,222.9,143.81,143.61,49.92647171]
[1740753217315,243.71,143.81,143.61,49.92647171]
[1740753217515,6.9634,143.7,143.61,49.92647171]
[1740753217716,0.04891409,143.72,143.7,9.811e-05]
[1740753218024,20.81,143.8,143.61,1.39266067]
[1740753218216,20.81,143.78,143.61,1.39266067]
[1740753218417,222.92,143.79,143.49,6.9921]
[1740753218618,20.57616198,143.77,143.49,6.9921]
[1740753218820,19.32436759,143.77,143.49,6.9921]
[1740753219119,222.92,143.79,143.62,0.05004216]
[1740753219521,222.92,143.79,143.49,6.9921]
[1740753219719,222.92,143.79,143.5,1.39372822]
[1740753220114,222.92,143.79,143.5,49.92753926]
[1740753220418,0.05050614,143.66,143.63,0.04442809]
[1740753220615,6.9601,143.76,143.66,6.9647]
[1740753220816,6.9601,143.76,143.53,3.4934]
[1740753221019,222.92,143.79,143.53,3.4934]
[1740753221217,222.92,143.79,143.53,52.02721104]
[1740753221813,0.05114464,143.67,143.65,0.04984536]
[1740753222018,222.92,143.79,143.53,3.4934]
[1740753222214,0.0490291,143.67,143.65,0.04496188]
[1740753222420,222.92,143.79,143.59,222.9]
[1740753223020,0.89208761,143.82,143.59,222.9]
[1740753223621,222.86,143.86,143.69,0.04854112]
[1740753224012,6.12679154,143.85,143.77,6.9591]
[1740753224416,6.9585,143.8,143.72,6.9615]
[1740753224918,0.04613702,143.77,143.75,0.05069618]
[1740753225317,222.86,143.86,143.75,0.05069618]
[1740753225519,0.04470838,143.77,143.75,0.05069618]
[1740753225715,222.86,143.86,143.79,0.04934051]
[1740753226027,26.38,143.85,143.7,7.0443]
[1740753226219,47.19,143.85,143.6,26.38]
[1740753226412,20.81,143.83,143.6,55.81571104]
[1740753226619,1.25102524,143.82,143.6,55.81571104]
[1740753226817,1.25102524,143.82,143.6,7.2819]
[1740753227222,6.9624,143.71,143.7,5.27e-06]
[1740753227412,26.24,143.71,143.6,7.2819]
[1740753227618,42.22824513,143.71,143.53,3.4934]
[1740753227817,42.22824513,143.71,143.53,52.02721104]
[1740753228221,6.968,143.6,143.53,48.53381104]
[1740753228414,222.82,143.62,143.61,3.904e-05]
[1740753228620,26.14,143.62,143.51,55.81571104]
[1740753228821,26.14,143.62,143.51,7.2819]
[1740753229017,222.82,143.63,143.51,55.81571104]
[1740753229219,19.47221117,143.61,143.51,55.81571104]
[1740753229418,0.04814774,143.57,143.55,0.05145955]
[1740753229828,19.47221117,143.6,143.55,0.05145955]
[1740753230026,13.81821117,143.6,143.55,0.05145955]
[1740753230525,6.14932505,143.59,143.55,0.05145955]
[1740753230727,3.48396604,143.67,143.55,3.53145955]
[1740753230921,3.432e-05,143.58,143.55,3.48]
[1740753231127,9.03035967,143.77,143.6,0.046833]
[1740753231317,9.03035967,143.77,143.58,25.98]
[1740753231523,27.42467206,143.77,143.53,222.88]
[1740753231923,6.9619,143.73,143.53,222.88]
[1740753232125,9.03035967,143.77,143.53,271.41377672]
[1740753232324,0.04811113,143.64,143.62,0.04979677]
[1740753232629,25.92,143.69,143.53,222.88]
[1740753232929,0.04805247,143.64,143.62,0.04995586]
[1740753233319,25.92,143.69,143.62,0.04995586]
[1740753233524,26.3912709,143.77,143.62,0.04995586]
[1740753233725,26.3912709,143.77,143.62,48.58364859]
[1740753234027,9.03035967,143.77,143.59,25.8]
[1740753234423,43.14091123,143.78,143.59,74.33369273]
[1740753234629,17.36091123,143.78,143.59,25.8]
[1740753234929,0.04560885,143.7,143.67,0.0521206]
[1740753235125,17.36091123,143.78,143.67,0.0521206]
[1740753235324,17.36091123,143.78,143.63,222.86]
[1740753235523,258.9814387,143.88,143.63,222.86]
[1740753235524,25.7,143.86,143.63,222.86]
[1740753235724,25.7,143.86,143.63,271.39369273]
[1740753236025,25.7,143.86,143.64,3.5969]